bitfinex/quotes_SOLUSD_20250102
["timestamp","ask_amount","ask_price","bid_price","bid_amount"]
[1735845451038,8.97030827,207.46,207.42,5.0]
[1735845461451,8.97030827,207.46,207.4,10.0]
[1735845461766,8.97030827,207.44,207.42,5.0]
[1735845463164,0.25098,207.49,207.44,5.0]
[1735845463354,8.97030827,207.45,207.44,5.0]
[1735845464971,8.97030827,207.45,207.42,5.0]
[1735845466442,8.97030827,207.43,207.4,5.0]
[1735845466653,8.97030827,207.41,207.38,5.0]
[1735845466983,8.97030827,207.41,207.36,10.0]
[1735845467637,8.97030827,207.4,207.36,10.0]
[1735845467847,8.97030827,207.42,207.4,5.0]
[1735845471560,35.88123308,207.5,207.42,5.0]
[1735845471749,12.0477,207.51,207.42,5.0]
[1735845471948,8.97030827,207.46,207.42,5.0]
[1735845475747,20.0,207.47,207.42,5.0]
[1735845476048,8.97030827,207.44,207.42,5.0]
[1735845477368,8.97030827,207.45,207.42,5.0]
[1735845483152,8.97030827,207.44,207.42,5.0]
[1735845483354,8.97030827,207.43,207.4,5.0]
[1735845483559,8.97030827,207.41,207.4,5.0]
[1735845483861,8.97030827,207.41,207.37,5.0]
[1735845484066,8.97030827,207.38,207.37,5.0]
[1735845484280,8.97030827,207.39,207.37,5.0]
[1735845484508,8.97030827,207.39,207.37,6.20721164]
[1735845484880,8.97030827,207.39,207.38,1.20721164]
[1735845485550,8.97030827,207.39,207.37,5.0]
[1735845489192,8.97030827,207.4,207.37,5.0]
[1735845493488,8.97030827,207.41,207.37,5.0]
[1735845494693,8.97030827,207.41,207.39,5.0]
[1735845495298,8.97030827,207.41,207.37,5.0]
[1735845496395,8.97030827,207.41,207.4,5.0]
[1735845497300,8.97030827,207.42,207.38,5.0]
[1735845503801,12.0489,207.49,207.38,5.0]
[1735845504103,8.97030827,207.46,207.42,5.0]
[1735845506388,23.902374,207.51,207.44,5.0]
[1735845506588,8.97030827,207.46,207.44,5.0]
[1735845506790,8.97030827,207.47,207.44,5.0]
[1735845508379,8.97030827,207.46,207.44,5.0]
[1735845512605,6.022,207.55,207.44,5.0]
[1735845512606,7.43098305,207.61,207.56,5.0]
[1735845512807,8.97030827,207.61,207.56,5.0]
[1735845513010,7.43098305,207.62,207.58,10.0]
[1735845513805,8.97030827,207.62,207.58,10.0]
[1735845514219,17.64178433,207.63,207.58,10.0]
[1735845514383,8.67147606,207.63,207.6,5.0]
[1735845514717,8.97030827,207.64,207.6,5.0]
[1735845515306,18.13239713,207.69,207.61,8.97030827]
[1735845515508,8.97030827,207.67,207.62,5.0]
[1735845517220,8.97030827,207.65,207.62,5.0]
[1735845517519,8.97030827,207.65,207.64,5.0]
[1735845519821,20.0,207.62,207.56,5.0]
[1735845520001,8.97030827,207.57,207.54,5.0]
[1735845520197,8.97030827,207.55,207.54,5.0]
[1735845521521,7.94232107,207.62,207.61,5.0]
[1735845521722,16.61379713,207.62,207.61,5.0]
[1735845522098,8.67147606,207.62,207.61,13.97030827]
[1735845522301,8.97030827,207.67,207.66,5.0]
[1735845523422,8.97030827,207.68,207.66,10.0]
[1735845524109,8.97030827,207.67,207.66,10.0]
[1735845524824,8.97030827,207.68,207.66,10.0]
[1735845525027,2.08628009,207.76,207.69,5.0]
[1735845525320,8.97030827,207.7,207.69,5.0]
[1735845525624,8.97030827,207.7,207.69,0.52298108]
[1735845525807,14.0855158,207.77,207.69,0.52298108]
[1735845526012,8.97030827,207.7,207.69,0.52298108]
[1735845527427,8.97030827,207.7,207.67,0.52298108]
[1735845527728,8.97030827,207.7,207.69,0.52298108]
[1735845528104,17.94061654,207.7,207.63,0.72221901]
[1735845528308,0.12549,207.69,207.62,0.52298108]
[1735845528822,20.0,207.67,207.62,0.52298108]
[1735845529031,8.97030827,207.63,207.6,5.52298108]
[1735845529320,8.97030827,207.61,207.6,5.52298108]
[1735845529718,8.97030827,207.62,207.6,5.52298108]
[1735845530828,8.97030827,207.61,207.6,5.52298108]
[1735845531015,8.97030827,207.61,207.6,0.52298108]
[1735845531216,8.97030827,207.61,207.58,5.52298108]
[1735845531416,8.97030827,207.59,207.58,5.52298108]
[1735845531616,8.97030827,207.6,207.58,5.52298108]
[1735845533528,8.97030827,207.61,207.58,5.52298108]
[1735845534030,8.97030827,207.62,207.6,5.52298108]
[1735845534234,8.97030827,207.63,207.62,0.52298108]
[1735845535120,8.97030827,207.63,207.61,0.52298108]
[1735845535320,8.97030827,207.62,207.61,0.52298108]
[1735845542737,8.97030827,207.64,207.61,0.52298108]
[1735845543823,8.97030827,207.62,207.61,0.52298108]
[1735845550451,8.97030827,207.62,207.6,5.0]
[1735845550643,8.97030827,207.62,207.61,0.52298108]
[1735845553525,8.97030827,207.62,207.59,0.52298108]
[1735845553730,8.97030827,207.6,207.57,0.52298108]
[1735845554031,8.97030827,207.58,207.57,0.52298108]
[1735845554251,8.97030827,207.59,207.57,0.52298108]
[1735845555340,8.97030827,207.6,207.57,0.52298108]
[1735845555532,8.97030827,207.62,207.59,0.52298108]
[1735845555733,8.97030827,207.61,207.59,0.52298108]
[1735845556145,8.97030827,207.6,207.59,0.52298108]
[1735845559754,0.12549,207.67,207.59,0.52298108]
[1735845559961,0.25098,207.67,207.61,0.52298108]
[1735845560346,0.25098,207.67,207.59,0.52298108]
[1735845560654,8.97030827,207.61,207.59,0.52298108]
[1735845561963,8.97030827,207.62,207.59,0.52298108]
[1735845566564,8.97030827,207.6,207.57,0.52298108]
[1735845567163,8.97030827,207.58,207.57,0.52298108]
[1735845568265,8.97030827,207.58,207.55,0.52298108]
[1735845568568,8.97030827,207.57,207.55,0.52298108]
[1735845570754,8.97030827,207.56,207.55,0.52298108]
[1735845572898,8.97030827,207.57,207.55,0.52298108]
[1735845574222,8.97030827,207.58,207.55,0.52298108]
[1735845577190,24.027864,207.63,207.53,0.52298108]
[1735845577191,8.97030827,207.56,207.53,0.52298108]
[1735845577401,8.97030827,207.54,207.53,0.52298108]
[1735845577711,8.97030827,207.54,207.51,0.52298108]
[1735845577908,8.97030827,207.52,207.51,5.52298108]
[1735845578114,8.97030827,207.53,207.51,5.52298108]
[1735845581322,8.97030827,207.54,207.51,5.52298108]
[1735845581902,8.97030827,207.53,207.51,5.52298108]
[1735845582735,8.97030827,207.52,207.51,5.52298108]
[1735845583222,8.97030827,207.53,207.51,5.52298108]
[1735845589399,8.97030827,207.54,207.51,5.52298108]
[1735845589604,8.97030827,207.54,207.53,0.52298108]
[1735845591043,8.97030827,207.54,207.51,5.52298108]
[1735845593436,8.97030827,207.54,207.53,0.52298108]
[1735845597248,8.97030827,207.54,207.51,5.52298108]
[1735845598337,8.97030827,207.54,207.53,0.52298108]
[1735845600649,8.97030827,207.54,207.51,5.0]
[1735845600650,8.97030827,207.54,207.51,5.52298108]
[1735845601944,8.97030827,207.53,207.51,0.52298108]
[1735845602253,8.97030827,207.52,207.49,0.52298108]
[1735845602438,8.97030827,207.5,207.47,0.52298108]
[1735845602639,8.97030827,207.48,207.45,0.52298108]
[1735845602844,8.97030827,207.47,207.45,0.52298108]
[1735845603564,8.97030827,207.46,207.42,7.04038108]
[1735845603734,35.88123308,207.5,207.42,7.04038108]
[1735845603735,8.97030827,207.45,207.42,5.52298108]
[1735845604745,8.97030827,207.45,207.44,0.52298108]
[1735845608160,8.97030827,207.46,207.44,0.52298108]
[1735845608346,32.0466,207.53,207.45,0.52298108]
[1735845608543,8.97030827,207.5,207.48,0.52298108]
[1735845608751,40.358252,207.6,207.49,0.52298108]
[1735845608752,8.97030827,207.53,207.49,0.52298108]
[1735845609064,14.03980281,207.59,207.52,0.52298108]
[1735845609574,8.97030827,207.55,207.52,0.52298108]
[1735845611152,14.03980281,207.59,207.52,0.52298108]
[1735845611153,8.97030827,207.53,207.52,0.52298108]
[1735845611550,8.97030827,207.54,207.52,0.52298108]
[1735845614766,8.97030827,207.55,207.52,0.52298108]
[1735845614935,28.97030827,207.56,207.52,0.52298108]
[1735845615762,28.97030827,207.56,207.5,14.49328935]
[1735845616061,28.97030827,207.56,207.53,0.52298108]
[1735845616234,3.58401446,207.61,207.55,0.52298108]
[1735845616442,8.97030827,207.58,207.55,0.52298108]
[1735845616646,8.97030827,207.58,207.57,0.52298108]
[1735845618763,8.97030827,207.58,207.55,0.52298108]
[1735845618939,8.97030827,207.56,207.55,0.52298108]
[1735845619664,8.97030827,207.57,207.55,5.52298108]
[1735845621563,8.97030827,207.58,207.55,5.52298108]
[1735845623261,8.97030827,207.58,207.57,0.52298108]
[1735845624366,8.97030827,207.58,207.54,0.52298108]
[1735845624541,8.97030827,207.55,207.54,0.52298108]
[1735845624967,8.97030827,207.56,207.54,0.52298108]
[1735845625573,8.97030827,207.57,207.54,0.52298108]
[1735845625942,8.97030827,207.57,207.56,0.52298108]
[1735845628967,8.97030827,207.59,207.58,0.52298108]
[1735845632159,8.97030827,207.59,207.57,5.0]
[1735845632160,12.0379,207.68,207.61,0.52298108]
[1735845632347,8.97030827,207.62,207.61,0.52298108]
[1735845638852,8.97030827,207.62,207.59,5.0]
[1735845638853,8.97030827,207.62,207.59,0.52298108]
[1735845639071,8.97030827,207.6,207.59,0.52298108]
[1735845641460,8.97030827,207.61,207.59,5.52298108]
[1735845642779,8.97030827,207.62,207.61,0.52298108]
[1735845645378,8.97030827,207.63,207.61,0.52298108]
[1735845646383,1.5639,207.7,207.62,5.0]
[1735845646679,20.0,207.67,207.65,0.52298108]
[1735845648583,20.0,207.67,207.63,0.52298108]
[1735845648760,20.0,207.67,207.65,0.52298108]
[1735845650769,8.97030827,207.66,207.65,0.52298108]
[1735845652485,9.09579827,207.66,207.63,0.52298108]
[1735845652668,8.97030827,207.64,207.63,0.52298108]
[1735845657181,0.12549,207.66,207.63,0.52298108]
[1735845657182,8.97030827,207.65,207.63,0.52298108]
[1735845660586,8.97030827,207.66,207.63,0.52298108]
[1735845660883,8.97030827,207.66,207.65,0.52298108]
[1735845673693,8.97030827,207.67,207.66,5.0]
[1735845674795,8.97030827,207.68,207.67,0.52298108]
[1735845687245,8.97030827,207.68,207.65,0.52298108]
[1735845687538,8.97030827,207.66,207.65,0.52298108]
[1735845690423,8.97030827,207.66,207.63,0.52298108]
[1735845690623,8.97030827,207.64,207.63,0.52298108]
[1735845691231,8.97030827,207.64,207.63,1.72881522]
[1735845691934,9.09579827,207.64,207.63,1.20583414]
[1735845692238,32.87268227,207.64,207.63,1.20583414]
[1735845692642,0.12549,207.63,207.59,0.52298108]
[1735845692922,8.97030827,207.6,207.59,0.52298108]
[1735845693931,8.97030827,207.6,207.57,0.52298108]
[1735845694117,8.97030827,207.58,207.57,0.52298108]
[1735845694316,8.97030827,207.58,207.55,0.52298108]
[1735845695539,8.97030827,207.58,207.57,0.52298108]
[1735845698143,8.97030827,207.58,207.55,0.52298108]
[1735845698350,8.97030827,207.56,207.55,0.52298108]
[1735845698520,24.027864,207.59,207.55,0.52298108]
[1735845698721,8.97030827,207.56,207.55,0.52298108]
[1735845699117,8.97030827,207.56,207.53,0.52298108]
[1735845699324,8.97030827,207.55,207.53,0.52298108]
[1735845701545,24.027864,207.59,207.55,0.52298108]
[1735845701734,8.97030827,207.56,207.55,0.52298108]
[1735845705145,8.97030827,207.56,207.52,5.52298108]
[1735845705323,8.97030827,207.55,207.52,5.52298108]
[1735845706024,8.97030827,207.53,207.52,0.52298108]
[1735845706227,8.97030827,207.53,207.49,0.52298108]
[1735845706529,8.97030827,207.5,207.49,0.52298108]
[1735845716753,8.97030827,207.5,207.47,0.52298108]
[1735845717051,8.97030827,207.48,207.47,0.52298108]
[1735845718928,8.97030827,207.49,207.47,0.52298108]
[1735845720156,8.97030827,207.48,207.47,0.52298108]
[1735845721964,8.97030827,207.48,207.45,0.52298108]
[1735845722262,8.97030827,207.46,207.45,0.52298108]
[1735845722840,12.0454,207.55,207.5,0.52298108]
[1735845723056,8.97030827,207.51,207.5,0.52298108]
[1735845723764,8.97030827,207.51,207.5,0.52298108]
[1735845725747,9.09579827,207.51,207.5,0.52298108]
[1735845726267,20.0,207.51,207.5,0.52298108]
[1735845726570,8.97030827,207.51,207.5,0.52298108]
[1735845731365,8.97030827,207.56,207.54,0.52298108]
[1735845731672,8.97030827,207.57,207.56,0.52298108]
[1735845733269,26.04909065,207.65,207.56,0.52298108]
[1735845733270,8.97030827,207.59,207.58,0.52298108]
[1735845736851,12.0398,207.65,207.58,5.52298108]
[1735845737160,20.0,207.62,207.6,0.52298108]
[1735845737372,8.97030827,207.61,207.58,5.0]
[1735845737550,8.97030827,207.59,207.58,5.0]
[1735845742651,8.97030827,207.59,207.57,0.52298108]
[1735845742875,8.97030827,207.58,207.57,0.52298108]
[1735845747175,8.97030827,207.58,207.55,0.52298108]
[1735845747361,8.97030827,207.56,207.55,0.52298108]
[1735845747558,8.97030827,207.56,207.53,5.52298108]
[1735845748661,8.97030827,207.54,207.53,0.52298108]
[1735845752474,9.09579827,207.54,207.53,0.52298108]
[1735845752673,9.09579827,207.54,207.51,0.52298108]
[1735845752886,8.97030827,207.52,207.51,0.52298108]
[1735845754069,12.0431,207.59,207.56,0.52298108]
[1735845754273,20.0,207.57,207.56,0.52298108]
[1735845754581,8.97030827,207.57,207.56,0.52298108]
[1735845755082,8.97030827,207.57,207.56,5.52298108]
[1735845755476,8.97030827,207.58,207.56,5.52298108]
[1735845755784,8.97030827,207.57,207.56,5.52298108]
[1735845757273,8.97030827,207.57,207.56,0.52298108]
[1735845759689,8.97030827,207.57,207.54,5.52298108]
[1735845759883,8.97030827,207.55,207.54,5.52298108]
[1735845762594,20.0,207.57,207.56,5.0]
[1735845762595,8.97030827,207.57,207.56,5.0]
[1735845762893,8.97030827,207.59,207.58,0.52298108]
[1735845763424,12.0407,207.63,207.6,0.52298108]
[1735845763773,12.039,207.66,207.6,5.52298108]
[1735845763994,8.97030827,207.62,207.6,5.52298108]
[1735845765269,8.97030827,207.61,207.6,5.52298108]
[1735845765662,8.97030827,207.62,207.6,5.52298108]
[1735845767198,8.97030827,207.61,207.6,5.52298108]
[1735845767701,8.97030827,207.62,207.6,5.52298108]
[1735845771510,12.0377,207.68,207.64,5.0]
[1735845771687,20.0,207.65,207.62,5.52298108]
[1735845771886,8.97030827,207.63,207.62,5.52298108]
[1735845779006,20.0,207.65,207.62,5.52298108]
[1735845779312,8.97030827,207.63,207.62,5.52298108]
[1735845779887,8.97030827,207.63,207.57,30.0]
[1735845779888,12.036,207.71,207.67,0.52298108]
[1735845780094,8.97030827,207.68,207.67,0.52298108]
[1735845781791,8.97030827,207.7,207.62,8.97030827]
[1735845782815,6.5294,207.78,207.67,5.0]
[1735845782816,5.25469415,207.78,207.67,5.0]
[1735845783001,8.97030827,207.7,207.67,5.0]
[1735845783714,20.0,207.76,207.68,9.83680392]
[1735845783917,8.97030827,207.72,207.68,9.83680392]
[1735845784222,8.97030827,207.72,207.7,29.73884384]
[1735845785401,9.2741168,207.72,207.7,29.73884384]
[1735845785798,9.2741168,207.72,207.68,7.43303943]
[1735845787424,9.2741168,207.71,207.68,7.43303943]
[1735845787991,9.2741168,207.72,207.68,7.43303943]
[1735845788195,0.08412392,207.71,207.68,7.43303943]
[1735845789025,9.35824072,207.71,207.68,7.43303943]
[1735845789900,9.35824072,207.71,207.67,12.43303943]
[1735845792223,0.08412392,207.71,207.7,7.43303943]
[1735845792632,0.08412392,207.71,207.69,7.43303943]
[1735845793216,0.08412392,207.71,207.7,7.43303943]
[1735845793623,0.08412392,207.71,207.68,14.86607887]
[1735845794007,0.08412392,207.71,207.7,14.86607887]
[1735845794510,0.08412392,207.71,207.69,21.68820633]
[1735845794908,0.08412392,207.71,207.7,1.20537311]
[1735845797758,1.5445,207.8,207.7,1.20537311]
[1735845797759,3.63667681,207.86,207.74,20.0]
[1735845798045,951.92826931,207.86,207.83,5.0]
[1735845798252,951.92826931,207.86,207.85,9.2741168]
[1735845798637,0.12549,207.85,207.84,9.2741168]
[1735845798839,9.2741168,207.85,207.79,5.0]
[1735845799042,20.0,207.82,207.77,5.0]
[1735845800960,20.0,207.82,207.78,9.2741168]
[1735845801143,9.2741168,207.84,207.79,5.0]
[1735845801340,9.2741168,207.83,207.79,5.0]
[1735845801836,0.12549,207.85,207.79,5.0]
[1735845802830,20.0,207.83,207.79,5.0]
[1735845803345,0.12549,207.82,207.78,7.41408953]
[1735845803537,0.12549,207.8,207.78,7.41408953]
[1735845803847,20.0,207.81,207.78,7.41408953]
[1735845804042,951.92826931,207.86,207.78,7.41408953]
[1735845804255,20.0,207.83,207.76,14.26342242]
[1735845804643,20.0,207.83,207.78,7.41408953]
[1735845805737,20.0,207.83,207.79,7.41408953]
[1735845805946,951.92826931,207.86,207.79,7.41408953]
[1735845805947,0.12549,207.85,207.79,7.41408953]
[1735845806348,0.12549,207.85,207.79,12.41408953]
[1735845806649,951.92826931,207.86,207.79,12.41408953]
[1735845806832,0.12549,207.85,207.8,7.41408953]
[1735845807252,0.12549,207.85,207.81,7.41408953]
[1735845808354,0.12549,207.85,207.82,7.41408953]
[1735845808853,948.62042382,207.86,207.83,7.41408953]
[1735845809051,948.62042382,207.86,207.81,7.41408953]
[1735845809552,948.62042382,207.86,207.8,7.41408953]
[1735845809952,948.62042382,207.86,207.79,12.41408953]
[1735845810429,948.62042382,207.86,207.8,1.20492147]
[1735845810631,948.62042382,207.86,207.8,8.619011]
[1735845811253,948.62042382,207.86,207.81,1.20492147]
[1735845811864,948.62042382,207.86,207.81,6.20492147]
[1735845812031,948.62042382,207.86,207.81,5.0]
[1735845812231,948.62042382,207.86,207.81,14.26342242]
[1735845812439,948.62042382,207.89,207.81,14.26342242]
[1735845812856,948.62042382,207.89,207.82,1.20474547]
[1735845813166,931.88482166,207.89,207.82,1.20474547]
[1735845813457,931.88482166,207.89,207.83,1.20474547]
[1735845813667,931.88482166,207.89,207.86,5.0]
[1735845817850,931.88482166,207.89,207.83,11.659]
[1735845818050,931.88482166,207.89,207.82,7.41408953]
[1735845818051,12.0261,207.88,207.82,7.41408953]
[1735845818461,12.0261,207.88,207.81,5.0]
[1735845818772,12.0261,207.88,207.79,6.622]
[1735845818981,12.0261,207.88,207.82,1.20480186]
[1735845820978,12.0261,207.88,207.8,1.20487284]
[1735845821379,12.0261,207.88,207.81,1.20487284]
[1735845822176,12.0261,207.88,207.79,6.622]
[1735845822964,12.0261,207.88,207.8,1.20486183]
[1735845823165,12.0261,207.88,207.81,5.0]
[1735845823510,0.12549,207.87,207.81,5.0]
[1735845828825,0.08412392,207.86,207.81,5.0]
[1735845829125,0.08412392,207.86,207.84,5.0]
[1735845829823,0.08412392,207.86,207.85,1.20463043]
[1735845830227,12.0198,207.99,207.86,5.0]
[1735845830432,12.0198,207.99,207.85,18.39635285]
[1735845830433,931.80069774,207.98,207.89,5.0]
[1735845830913,931.80069774,207.98,207.89,12.41408953]
[1735845831230,20.0,207.95,207.89,12.41408953]
[1735845831429,20.0,207.95,207.9,7.41408953]
[1735845831923,931.80069774,207.98,207.91,7.41408953]
[1735845832104,931.80069774,207.98,207.89,5.0]
[1735845832505,0.12549,207.97,207.89,5.0]
[1735845832827,931.80069774,207.98,207.91,5.0]
[1735845833002,931.80069774,207.98,207.9,1.2043168]
[1735845833198,12.14639,207.97,207.9,1.2043168]
[1735845833829,12.14639,207.97,207.89,5.0]
[1735845834038,12.14639,207.97,207.87,5.0]
[1735845834405,20.0,207.94,207.87,5.0]
[1735845834605,20.0,207.94,207.88,1.20436449]
[1735845835660,20.0,207.94,207.87,5.0]
[1735845836053,0.12549,207.94,207.87,5.0]
[1735845837760,0.12549,207.94,207.88,1.20448455]
[1735845838565,0.12549,207.94,207.87,5.0]
[1735845840663,20.0,207.9,207.85,7.9283]
[1735845840861,0.12549,207.89,207.85,7.9283]
[1735845841160,0.12549,207.89,207.86,1.20446427]
[1735845841360,0.12549,207.87,207.86,0.75915263]
[1735845841562,0.12549,207.87,207.8,9.07388953]
[1735845841863,20.0,207.88,207.84,5.0]
[1735845842039,20.0,207.9,207.84,5.0]
[1735845842776,20.0,207.9,207.86,5.0]
[1735845842957,1.5169,207.97,207.86,5.0]
[1735845843160,12.0217,207.96,207.86,5.0]
[1735845844178,20.0,207.93,207.88,5.0]
[1735845844475,2.49241867,207.97,207.9,5.0]
[1735845844679,12.0198,207.99,207.9,5.0]
[1735845845583,0.12549,207.98,207.9,5.0]
[1735845845883,20.0,207.96,207.9,5.0]
[1735845847083,20.0,207.96,207.92,5.0]
[1735845849268,20.0,207.96,207.9,5.0]
[1735845849566,20.0,207.96,207.87,10.90062242]
[1735845849567,20.0,207.96,207.92,5.0]
[1735845850672,20.0,207.96,207.9,5.0]
[1735845851286,20.0,207.96,207.92,5.0]
[1735845852463,20.0,207.96,207.94,5.0]
[1735845853988,0.08412392,207.97,207.96,5.0]
[1735845854971,0.08412392,207.97,207.94,5.0]
[1735845855579,0.08412392,207.97,207.96,5.0]
[1735845858795,0.08412392,207.97,207.92,6.5534]
[1735845858994,0.20961392,207.97,207.88,5.0]
[1735845859802,0.20961392,207.97,207.9,5.0]
[1735845860301,0.12549,207.96,207.88,5.0]
[1735845860473,20.0,207.93,207.87,8.0354]
[1735845860898,0.12549,207.92,207.87,8.0354]
[1735845861585,931.80069774,207.91,207.87,6.4731]
[1735845874032,20.0,207.89,207.88,1.20447116]
[1735845877630,20.0,207.89,207.88,1.12034724]
[1735845877808,930.59622658,207.88,207.86,5.0]
[1735845886029,930.59622658,207.88,207.84,5.0]
[1735845890054,930.59622658,207.88,207.85,1.20455582]
[1735845890527,930.59622658,207.88,207.86,1.20455582]
[1735845891245,930.59622658,207.88,207.84,5.0]
[1735845892125,930.59622658,207.88,207.85,1.20454323]
[1735845892324,20.0,207.89,207.85,1.20454323]
[1735845893227,20.0,207.89,207.86,1.20454323]
[1735845893442,0.08412392,207.88,207.86,1.20454323]
[1735845893644,0.08412392,207.88,207.84,5.0]
[1735845894324,0.08412392,207.88,207.85,1.20453716]
[1735845894831,0.08412392,207.88,207.86,1.20453716]
[1735845895745,0.08412392,207.88,207.87,1.20453716]
[1735845899354,0.03685692,207.88,207.87,1.20453716]
[1735845900256,0.03685692,207.88,207.84,5.0]
[1735845900959,0.03685692,207.88,207.85,1.20449821]
[1735845901559,0.03685692,207.88,207.84,5.0]
[1735845901936,0.03685692,207.88,207.86,1.20449703]
[1735845902354,0.03685692,207.88,207.87,1.20449703]
[1735845906661,20.16234692,207.88,207.84,7.41408953]
[1735845906846,12.18904692,207.88,207.84,7.41408953]
[1735845907040,12.18904692,207.88,207.81,5.0]
[1735845908452,930.54895958,207.87,207.81,5.0]
[1735845908954,20.0,207.84,207.79,12.41408953]
[1735845909484,20.0,207.84,207.79,5.0]
[1735845910070,0.12549,207.83,207.77,8.93478953]
[1735845910374,20.0,207.8,207.77,3.93478953]
[1735845910856,20.0,207.8,207.75,5.0]
[1735845911236,0.12549,207.79,207.72,14.26342242]
[1735845911442,0.12549,207.79,207.72,5.0]
[1735845912072,20.0,207.75,207.7,5.0]
[1735845912650,20.0,207.75,207.67,5.0]
[1735845912651,0.12549,207.74,207.67,5.0]
[1735845912850,0.12549,207.74,207.66,6.5958]
[1735845913051,0.12549,207.74,207.65,5.0]
[1735845913984,0.12549,207.7,207.63,5.0]
[1735845914146,0.12549,207.7,207.61,6.1894]
[1735845914975,20.0,207.7,207.58,147.16342242]
[1735845915178,0.12549,207.69,207.58,147.16342242]
[1735845916064,12.0373,207.69,207.58,147.16342242]
[1735845916382,20.0,207.66,207.58,147.16342242]
[1735845916756,12.0353,207.73,207.63,9.26342242]
[1735845916955,12.0353,207.73,207.64,9.26342242]
[1735845917166,2.22458476,207.74,207.66,9.26342242]
[1735845917488,0.12549,207.73,207.66,9.26342242]
[1735845917695,20.0,207.73,207.67,9.26342242]
[1735845918180,0.12549,207.75,207.66,9.26342242]
[1735845918390,20.0,207.74,207.66,9.26342242]
[1735845918789,15.90610045,207.77,207.7,9.26342242]
[1735845919157,0.12549,207.76,207.7,9.26342242]
[1735845919375,15.90610045,207.77,207.69,9.26342242]
[1735845920794,0.12549,207.76,207.68,9.26342242]
[1735845921286,0.12549,207.76,207.69,9.26342242]
[1735845921885,0.12549,207.76,207.68,9.26342242]
[1735845922257,12.0306,207.81,207.72,9.26342242]
[1735845922459,12.0284,207.85,207.76,9.26342242]
[1735845923367,2.2614087,207.86,207.77,9.26342242]
[1735845923589,1.615,207.88,207.76,6.2229]
[1735845923879,12.15219,207.87,207.76,6.2229]
[1735845924082,0.12549,207.82,207.76,6.2229]
[1735845924285,12.0267,207.87,207.78,9.26342242]
[1735845924475,12.0249,207.91,207.79,9.26342242]
[1735845924665,0.08412392,207.85,207.79,9.26342242]
[1735845925065,0.08412392,207.85,207.77,9.26342242]
[1735845925395,0.08412392,207.85,207.79,9.26342242]
[1735845925560,0.08412392,207.85,207.78,9.26342242]
[1735845925974,0.08412392,207.85,207.77,9.26342242]
[1735845926461,0.08412392,207.85,207.78,9.26342242]
[1735845926984,0.08412392,207.85,207.76,144.1229]
[1735845926985,0.08412392,207.85,207.8,9.26342242]
[1735845927482,0.08412392,207.85,207.81,147.16342242]
[1735845927979,0.08412392,207.85,207.81,137.9]
[1735845928183,0.12549,207.89,207.78,9.26342242]
[1735845928569,20.0,207.87,207.77,9.26342242]
[1735845928885,0.12549,207.86,207.77,137.9]
[1735845929184,0.12549,207.86,207.76,6.2229]
[1735845929383,23.902374,207.86,207.76,6.2229]
[1735845929677,0.12549,207.84,207.76,6.2229]
[1735845931974,20.0,207.86,207.76,20.70083354]
[1735845932281,12.026,207.89,207.78,14.47793354]
[1735845932586,0.12549,207.88,207.78,14.47793354]
[1735845934383,20.0,207.87,207.81,14.47793354]
[1735845934681,930.46483566,207.9,207.81,14.47793354]
[1735845935380,930.46483566,207.9,207.79,14.47793354]
[1735845935884,0.12549,207.89,207.78,14.47793354]
[1735845936071,20.0,207.87,207.78,14.47793354]
[1735845936266,0.12549,207.89,207.77,44.47793354]
[1735845936771,0.12549,207.89,207.79,14.47793354]
[1735845937383,0.12549,207.89,207.78,14.47793354]
[1735845937560,930.46483566,207.9,207.8,14.47793354]
[1735845937761,930.46483566,207.9,207.81,152.37793354]
[1735845937976,930.46483566,207.9,207.82,14.47793354]
[1735845938163,930.46483566,207.9,207.83,14.47793354]
[1735845939061,930.46483566,207.9,207.84,14.47793354]
[1735845940565,930.46483566,207.9,207.83,14.47793354]
[1735845940978,930.46483566,207.9,207.81,154.00793354]
[1735845941285,930.46483566,207.9,207.81,139.53]
[1735845941472,930.46483566,207.9,207.82,14.47793354]
[1735845941660,930.46483566,207.9,207.83,14.47793354]
[1735845942790,930.46483566,207.9,207.82,14.47793354]
[1735845943290,0.12549,207.92,207.81,139.53]
[1735845943490,23.902374,207.92,207.81,137.9]
[1735845943707,23.902374,207.9,207.81,137.9]